Cogmind - Beta 11.1 @@@ ROGUE MODE // 2022.11.13 @ 19:51:20 Player: Blisterpack Result: Destroyed by G-34 Mercenary with Small Laser Performance ------------- Evolutions (1) 500 Regions Visited (4) 800 Robots Destroyed (32) 160 Value Destroyed (921) 921 Prototype IDs (2) 40 Alien Tech Used (0) 0 Bonus (129) 129 TOTAL SCORE: 2550 Bonus ------- High Alert Combat Kills 129 Cogmind --------- Core Integrity 0/400 Matter 300/300 Energy 100/100 System Corruption 0% Temperature Cool (6) Movement Core (200) Ox3 Location -9/Storage Parts ------- > --- POWER (1) -------- (None) > --- PROPULSION (4) --- Aluminum Leg > --- UTILITY (2) ------ Medium Storage Unit Salvage Targeting Computer > --- WEAPON (2) ------- (None) > --- INVENTORY (10) --- Ion Engine Cooling System Small Storage Unit Huge Storage Unit Salvage Targeting Computer Light Armor Plating Peak State ------------ > --- POWER ------------ Ion Engine > --- PROPULSION ------- Aluminum Leg Aluminum Leg Aluminum Leg Aluminum Leg > --- UTILITY ---------- Medium Storage Unit Salvage Targeting Computer > --- WEAPON ----------- EM Shotgun Rocket Launcher > --- INVENTORY -------- Ion Engine Cooling System Small Storage Unit Huge Storage Unit Seismic Detector Salvage Targeting Computer EM Shotgun Proton Bomb Trap Proton Bomb Trap [Rating: 13] Favorites ----------- Power Ion Engine Engine Ion Engine Propulsion Aluminum Leg Treads Light Treads Leg Aluminum Leg Utility Salvage Targeting Computer Storage Medium Storage Unit Processor Salvage Targeting Computer Weapon Rocket Launcher Energy Gun EM Shotgun Ballistic Gun Light Assault Rifle Launcher Rocket Launcher Slashing Weapon Katana Build | -11 -10 -10 -9 -9 ------- Run | Scr Mat Min Mat Sto Slots Evolved 2 | . . . 2 . Power . | . . . . . Propulsion 2 | . . . 2 . Utility . | . . . . . Weapon . | . . . . . Parts Attached 35 | 6 7 1 3 18 Power 7 | 1 1 . . 5 Engine 7 | 1 1 . . 5 Core . | . . . . . Reactor . | . . . . . Propulsion 16 | 2 2 . 2 10 Treads 2 | . . . . 2 Leg 14 | 2 2 . 2 8 Wheel . | . . . . . Hover . | . . . . . Flight . | . . . . . Utility 3 | 1 2 . . . Device . | . . . . . Storage 2 | 1 1 . . . Processor 1 | . 1 . . . Hackware . | . . . . . Protection . | . . . . . Artifact . | . . . . . Weapon 9 | 2 2 1 1 3 Energy Gun 3 | . . . 1 2 Energy Cannon . | . . . . . Ballistic Gun 3 | 2 1 . . . Ballistic Cannon . | . . . . . Launcher 2 | . 1 1 . . Special Weapon . | . . . . . Impact Weapon . | . . . . . Slashing Weapon 1 | . . . . 1 Piercing Weapon . | . . . . . Special Melee Weapon . | . . . . . Unidentified Prototypes . | . . . . . Parts Lost 13 | . . 1 . 12 Power 2 | . . . . 2 Propulsion 6 | . . . . 6 Utility . | . . . . . Weapon 5 | . . 1 . 4 Highest Loss Streak 7 | . . 1 . 7 To Critical Strikes . | . . . . . Average Slot Usage (%) 95 | . 92 100 99 91 Engine 12 | . 14 14 11 10 Leg 32 | . 28 28 43 35 Storage 12 | . 14 14 11 11 Processor 11 | . 7 14 11 11 Energy Gun 5 | . . . 1 13 Ballistic Gun 9 | . 20 14 9 . Launcher 9 | . 7 14 11 7 Naked Turns . | . . . . . Heaviest Build 22 | 13 20 20 22 22 Greatest Support 40 | 20 20 20 40 40 Greatest Overweight (x) 2 | 2 . . . 1 Average Overweight (x) . | . . . . . Largest Inventory Capacity 10 | 8 10 10 10 10 Average Capacity 9 | 6 8 10 10 10 Most Carried 10 | 4 7 10 10 10 Average Carried 7 | 2 3 9 8 9 Final Capacity 10 | 8 10 10 10 10 Final Carried 9 | 2 7 9 9 6 Class Distribution -------------------- 74% | Mutant 25% | Scavenger-Mutant Dominant Class ---------------- Mutant | -10/Materials Mutant | -10/Mines Mutant | -9/Materials Scavenger-Mutant | -9/Storage Resources | -11 -10 -10 -9 -9 ----------- Run | Scr Mat Min Mat Sto Matter Collected 788 | 238 152 24 . 374 Remotely . | . . . . . Salvage Created 870 | . 152 57 10 651 Parts 53 | . 10 6 3 34 Haulers Intercepted . | . . . . . Recyclers Shooed . | . . . . . Parts Field Recycled . | . . . . . Retrieved Matter . | . . . . . Parts Self-Destructed . | . . . . . Prevented . | . . . . . Kills | -11 -10 -10 -9 -9 ------- Run | Scr Mat Min Mat Sto Combat Hostiles Destroyed 28 | . 6 2 3 17 Melee 1 | . . . . 1 Guns 15 | . 6 . . 9 AOE 12 | . . 2 3 7 Classes Destroyed 7 | . 2 1 . 4 Worker 2 | . . 1 . 1 Builder 1 | . . . . 1 Recycler 1 | . . . . 1 Swarmer 6 | . 3 . 3 . Grunt 17 | . 3 2 . 12 Duelist 1 | . . . . 1 Sentry 4 | . . . . 4 Best Kill Streak 6 | . 5 3 3 6 Combat Bots Only 5 | . 5 2 3 5 Max Kills in Single Turn 4 | . 1 2 2 4 Gunslinging . | . . . . . Exploded 2 | . . 1 2 2 Melee 1 | . . . . 1 Uniques/NPCs Destroyed . | . . . . . Combat | -11 -10 -10 -9 -9 -------- Run | Scr Mat Min Mat Sto Damage Taken 2055 | . 351 164 65 1475 Core 511 | . 88 17 6 400 Absorbed by Shields . | . . . . . Regen/Repaired (Parts) 69 | . . . . 69 Core Remaining (%) 79 | 100 . 58 . . Volleys Fired 77 | . 22 5 2 48 Largest 2 | . 2 2 2 2 Hottest 85 | . 40 53 53 85 Shots Fired 132 | . 44 9 4 75 Gun 114 | . 44 5 2 63 Cannon . | . . . . . Launcher 18 | . . 4 2 12 Special . | . . . . . Kinetic 51 | . 44 5 2 . Thermal 29 | . . . . 29 Explosive 18 | . . 4 2 12 Electromagnetic 34 | . . . . 34 Robot Hit Streak 11 | . 6 4 4 11 Robot Miss Streak 5 | . 5 1 . 4 Penetration Max . | . . . . . Secondary Targets 3 | . 3 . . . Max Gunslinging Chain 1 | . 1 . . . Shots Hit Robots 80 | . 21 6 2 51 Core Hits 59 | . 9 6 1 43 Critical Kills . | . . . . . Critical Parts Destroyed 1 | . 1 . . . Critical Strikes 1 | . 1 . . . Destroy 1 | . 1 . . . Melee Attacks 4 | . . . . 4 Impact . | . . . . . Slashing 4 | . . . . 4 Piercing . | . . . . . Sneak Attacks . | . . . . . Combat Hostiles . | . . . . . Follow-up Attacks . | . . . . . Damage Inflicted 2061 | . 239 294 221 1307 Guns 841 | . 239 26 . 576 Cannons . | . . . . . Explosions 1162 | . . 268 221 673 Melee 57 | . . . . 57 Ramming 1 | . . . . 1 Kinetic 265 | . 239 26 . . Thermal 277 | . . . . 277 Explosive 1162 | . . 268 221 673 Electromagnetic 299 | . . . . 299 Impact . | . . . . . Slashing 57 | . . . . 57 Piercing . | . . . . . Highest Corruption . | . . . . . Average Corruption . | . . . . . Corruption Purged . | . . . . . Corruption Blocked . | . . . . . Overload Shots . | . . . . . Overflow Damage 62 | . . 5 57 . Projectiles . | . . . . . Explosions 62 | . . 5 57 . Melee . | . . . . . Knockbacks . | . . . . . Impact . | . . . . . Kinetic . | . . . . . Secondary . | . . . . . Self-Inflicted Damage 95 | . . . . 95 Shots 5 | . . . . 5 Rammed 2 | . . . . 2 Targets Rammed 2 | . . . . 2 Kicked . | . . . . . Crushed . | . . . . . Highest Temperature 138 | . 6 40 12 138 Average Temperature 35 | . 6 18 7 42 Received Heat Transfer 708 | . 90 108 . 510 Siege Activations . | . . . . . Robots Corrupted . | . . . . . Combat Hostiles . | . . . . . Parts Fried . | . . . . . Impact Corruptions . | . . . . . Robots Melted . | . . . . . Combat Hostiles . | . . . . . Parts Melted 1 | . . . . 1 Heat Transferred 620 | . . . . 620 Parts Sabotaged . | . . . . . Parts Stolen . | . . . . . Parts Stripped . | . . . . . Power Chain Reactions . | . . . . . Missiles Intercepted . | . . . . . Alert | -11 -10 -10 -9 -9 ------- Run | Scr Mat Min Mat Sto Peak Influence 753 | . 165 172 181 753 Initial 76 | . . 64 66 76 Average 231 | . 132 119 107 420 Maximum Alert Level 3 | . . . . 3 Low Security (%) 70 | 100 100 100 100 23 Level 1 6 | . . . . 16 Level 2 22 | . . . . 58 Level 3 . | . . . . 1 Level 4 . | . . . . . Level 5 . | . . . . . High Security . | . . . . . Max Security . | . . . . . Squads Dispatched 9 | . 2 . . 7 Investigation 4 | . 1 . . 3 Extermination . | . . . . . Reinforcement 4 | . 1 . . 3 Assault 1 | . . . . 1 Garrison . | . . . . . Intercept . | . . . . . Searches Triggered . | . . . . . Construction Impeded 1 | . . . . 1 Haulers Reinforced . | . . . . . Active Scanning Responses . | . . . . . Cargo Convoy Interrupts . | . . . . . Stealth | -11 -10 -10 -9 -9 --------- Run | Scr Mat Min Mat Sto Distress Signals 1 | . . . 1 . Communications Jammed . | . . . . . Distress Signals . | . . . . . Times Spotted 38 | . 7 3 3 25 Peak Tracking Total 7 | . 4 2 3 7 Tactical Retreats 4 | . . 1 . 3 Traps | -11 -10 -10 -9 -9 ------- Run | Scr Mat Min Mat Sto Traps Triggered 1 | . . . . 1 Indirectly . | . . . . . Trap Hack Attempts . | . . . . . Triggered . | . . . . . Disarmed . | . . . . . Reprogrammed . | . . . . . Reused . | . . . . . Traps Extracted . | . . . . . Installed 1 | . . 1 . . Triggered . | . . . . . Most Traps Carried 3 | . . 3 2 2 Machines | -11 -10 -10 -9 -9 ---------- Run | Scr Mat Min Mat Sto Machines Disabled 3 | . . . . 3 Max in Single Turn 2 | . . . . 2 Machines Sabotaged . | . . . . . Garrisons Compromised . | . . . . . Overloaded Fab Kills . | . . . . . Hacking | -11 -10 -10 -9 -9 --------- Run | Scr Mat Min Mat Sto Machines Accessed 3 | . 1 . . 2 Terminals 1 | . 1 . . . Fabricators . | . . . . . Repair Stations 2 | . . . . 2 Recycling Units . | . . . . . Scanalyzers . | . . . . . Garrison Access . | . . . . . Total Hacks 12 | . 5 . . 7 Successful 10 | . 3 . . 7 Failed 2 | . 2 . . . Catastrophic 2 | . 2 . . . Database Lockouts . | . . . . . Manual . | . . . . . Terminals 5 | . 5 . . . Fabricators . | . . . . . Repair Stations 7 | . . . . 7 Recycling Units . | . . . . . Scanalyzers . | . . . . . Garrison Access . | . . . . . Terminal Hacks 3 | . 3 . . . Record 1 | . 1 . . . Robot Analysis 1 | . 1 . . . Prototype ID Bank 1 | . 1 . . . Fabricator Hacks . | . . . . . Repair Station Hacks 7 | . . . . 7 Scan Component 4 | . . . . 4 Repair 3 | . . . . 3 Recycling Unit Hacks . | . . . . . Scanalyzer . | . . . . . Garrison Access Hacks . | . . . . . Unauthorized Hacks . | . . . . . Terminals . | . . . . . Fabricators . | . . . . . Repair Stations . | . . . . . Recycling Units . | . . . . . Scanalyzers . | . . . . . Garrison Access . | . . . . . Data Cores Recovered . | . . . . . Used . | . . . . . Hacking Detections 3 | . 1 . . 2 Full Trace Events 3 | . 1 . . 2 Feedback Events . | . . . . . Feedback Blocked . | . . . . . Robot Schematics Acquired . | . . . . . Robots Built . | . . . . . Authchips . | . . . . . Time . | . . . . . Total Robot Build Rating . | . . . . . Part Schematics Acquired . | . . . . . Parts Built . | . . . . . Authchips . | . . . . . Time . | . . . . . Total Part Build Rating . | . . . . . Parts Repaired 2 | . . . . 2 Time 78 | . . . . 78 Parts Recycled . | . . . . . Recycled Matter . | . . . . . Retrieved Matter . | . . . . . Retrieved Components . | . . . . . Parts Scanalyzed . | . . . . . Part Schematics Acquired . | . . . . . Parts Damaged . | . . . . . Bothacking | -11 -10 -10 -9 -9 ------------ Run | Scr Mat Min Mat Sto Used RIF Installer . | . . . . . Robots Hacked . | . . . . . Non-combat . | . . . . . Combat . | . . . . . Robot Hacks Applied . | . . . . . Relay Couplers Released . | . . . . . Fabnet Peak Effective % . | . . . . . Robots Rewired . | . . . . . Allies Hacked . | . . . . . Hacks Repelled . | . . . . . Allies | -11 -10 -10 -9 -9 -------- Run | Scr Mat Min Mat Sto Total Allies . | . . . . . Largest Group . | . . . . . Highest-Rated Group . | . . . . . Highest-Rated Ally . | . . . . . Total Orders . | . . . . . Ally Attacks . | . . . . . Total Damage . | . . . . . Kills . | . . . . . Allies Corrupted . | . . . . . Allies Melted . | . . . . . Intel | -11 -10 -10 -9 -9 ------- Run | Scr Mat Min Mat Sto Robot Analysis Total 1 | . 1 . . . Derelict Logs Recovered . | . . . . . Drone Launches . | . . . . . Drone Recoveries . | . . . . . Exploration | -11 -10 -10 -9 -9 ------------- Run | Scr Mat Min Mat Sto Turns Passed 1224 | 61 217 360 113 473 Spaces Moved 764 | 54 114 284 85 227 Core 37 | 37 . . . . Treads . | . . . . . Legs 727 | 17 114 284 85 227 Wheels . | . . . . . Hover . | . . . . . Flight . | . . . . . Fastest Speed 50 | 50 120 120 120 120 Average Speed 121 | 88 120 120 120 132 Slowest Speed 190 | 150 120 120 120 190 Overloaded Moves . | . . . . . Propulsion Burnouts . | . . . . . Robots Hopped . | . . . . . Cave-ins Triggered . | . . . . . Exploration Rate (%) 23 | 5 27 52 9 22 Regions Visited 4 Branch Regions 2 Pre-discovered Areas . | . . . . . Known Exits Taken . | . . . . . Unknown Exits Taken 4 | 1 1 1 1 . Scrap Searched . | . . . . . Spaces Dug . | . . . . . Terrain Destroyed 99 | . . 18 15 66 Melee . | . . . . . Projectile . | . . . . . AOE 99 | . . 18 15 66 Terrain Rammed . | . . . . . Walls Destroyed . | . . . . . Machines Disabled . | . . . . . Actions | -11 -10 -10 -9 -9 --------- Run | Scr Mat Min Mat Sto Total 929 | 67 154 295 93 320 Wait 1 | . . . . 1 Move 760 | 53 113 283 84 227 Hop . | . . . . . Pick Up 36 | 8 9 4 3 12 Fast Attach 2 | . . . . 2 Attach 24 | 6 3 1 3 11 Detach . | . . . . . Swap 9 | . 4 . . 5 Drop 13 | . 3 1 1 8 Fire 77 | . 22 5 2 48 Melee 4 | . . . . 4 Ram . | . . . . . Kick . | . . . . . Crush 2 | . . . . 2 Escape Stasis . | . . . . . Rewire . | . . . . . Trap 1 | . . 1 . . Miscellaneous . | . . . . . Route ------- -11/Scrapyard -10/Materials -10/Mines -9/Materials -9/Storage History --------- Turn | Location | Event 5 | -11/Scrapyard | Discovered new exit (range 16) 62 | -11/Scrapyard | Entered Materials 261 | -10/Materials | Discovered new exit (range 16) 279 | -10/Materials | Entered Mines 302 | -10/Mines | Found a hidden stash of uninstalled traps 304 | -10/Mines | Build established: Mutant 617 | -10/Mines | Discovered new exit (range 7) 639 | -10/Mines | Entered Materials 639 | -9/Materials | Evolved 2 slots: Propulsion x2 658 | -9/Materials | Discovered new exit (range 14) 752 | -9/Materials | Entered Storage 795 | -9/Storage | Repaired Aluminum Leg? 844 | -9/Storage | Repaired Aluminum Leg 1152 | -9/Storage | First assault squad dispatched 1179 | -9/Storage | Core integrity fell below 50% 1198 | -9/Storage | Build established: Scavenger-Mutant 1217 | -9/Storage | Core integrity fell below 20% 1225 | -9/Storage | Destroyed by G-34 Mercenary with Small Laser Last Messages --------------- 01194_ Y-45 Defender heat damages Beam Rifle. 01196_ Aluminum Leg destroyed. 01197_ Y-45 Defender misfires. 01199_ Ion Engine destroyed. 01202_ Y-45 Defender heat damages Heat Sink. 01202_ Y-45 Defender destroyed. 01203_ Ion Engine destroyed. 01204_ C-30 ARC bursts open, deploying its payload. 01204_ G-47 Trooper unfolds itself. 01204_ L-31 Rogue unfolds itself. 01204_ I-25 Savior unfolds itself. 01204_ Aluminum Leg severed. 01204_ Aluminum Leg crushed and broken. 01206_ Acquired 35 matter. 01207_ Sml. Laser destroyed. 01210_ Critical hit (Burn: +37). 01219_ Ion Engine severed. 01221_ Katana severed. 01222_ Slammed into L-31 Rogue. 01224_ Lgt. Treads destroyed. Map ----- +----------------------------------------------------+ | ???????????????? ??????????????????????????????? | | ?????????????### ??????????????????????????????? | | ????????????? #?????????????????????????????? | | ?????????????# #?????????????????????????????? | | ?????????????# #?????????????????????????????? | | ?????????????# #?????????????????????????????? | | ?????????????# #?????????????????????????????? | | ?????????????# #?????????????????????????????? | | ?????????????# #?????????????????????????????? | | ?????????????# +?????????????????????????????? | | ?????????????# #?????????????????????????????? | | ?????????????# ###############+#+###?????????? | | ?????????????# #?????????? | | ??############ +?????????? | | ?## """"" ## #?????????? | | ?#" """"" # ############# #?????????? | | ?#T """"" ## #???????????# #?????????? | | ?#" ## #???????????+ #?????????? | | ?## ## #???????????# #####+#?????????? | | ??# ## #???????????# #????? ????????? | | ??# & ## #???????????# #??????? #??????? | | ??# ##%% ##????#####?# #???????????????? | | ##### #&#### % #????#!! ###=#???????????????? | | % #????#ilY%r=%#???????????????? | | #????#lgg#####???????????????? | | #???###@####?????????????????? | | ######## #???# */ #?????????????????? | | ???????## # #######???# #?????????????????? | | ????????#####?????????# #?????????????????? | | ??????????????????????# #?????????????????? | | ??????????????????????# #?????????????????? | | ??????????????????????# #?????????????????? | | ??????????????????????########?????????????????? | | ???????????????????????????????????????????????? | | ???????????????????????????????????????????????? | | ???????????????????????????????????????????????? | | ???????????????????????????????????????????????? | | ???????????????????????????????????????????????? | | | | | | | | | | | | | | | | | | | | | | | | | +----------------------------------------------------+ Best States ------------- Heat Dissipation 28 Energy Generation 10 Energy Capacity 250 Matter Stores 300 Matter Capacity 300 Sight Range 16 Terrain Scan Density 10 Evasion (%) 55 Recoil Reduction 1 Salvage Targeting 1 Item Schematics ----------------- None Robot Schematics ------------------ None Fabricated ------------ Nothing Alien Tech Used ----------------- None Achievements -------------- Significant Disruption Challenges ------------ None Game ------ Seed TerrabombSurveybotTrap Manual? 0 Play Time 00:28:32 Cumulative 18.3 hours Start 2022.11.13 @ 15:08:39 End 2022.11.13 @ 19:51:20 Sessions 3 Manual Loads 0 Difficulty Rogue Special Mode None Game No. 19 Rogue 19 Adventurer 0 Explorer 0 Win Type - Total 0 Types 0/0/0/0/0/0/0/0/0 Lore% 6 Gallery% 15 Achievement% 13 Wizard Run 0 Options --------- ASCII 0 Keyboard 0 Movement Vi Keybinds 0 Fullscreen 2 Font 24/Smallcaps Map View 76x50 Tactical HUD 1 Map Filters NONE Filters NONE Steam 1 RUN: f01e468f-8918-43c8-b070-691f9178ccb6